Cogmind - Beta 14 @@@ ROGUE MODE // 2024.09.08 @ 00:59:31 Player: Null_error Result: Destroyed by Y-45 Defender with Heavy Assault Rifle Performance ------------- Evolutions (0) 0 Regions Visited (3) 600 Robots Destroyed (50) 250 Value Destroyed (869) 869 Prototype IDs (0) 0 Alien Tech Used (0) 0 Bonus (0) 0 TOTAL SCORE: 1719 Bonus ------- None Cogmind --------- Core Integrity 0/250 Matter 280/300 Energy 21/100 System Corruption 0% Temperature Cool (0) Movement Core (450) Ox8 Location -9/Recycling Parts ------- > --- POWER (1) -------- (None) > --- PROPULSION (2) --- (None) > --- UTILITY (2) ------ Large Storage Unit > --- WEAPON (2) ------- Heavy Assault Rifle EMP Blaster > --- INVENTORY (15) --- High-capacity Battery (250) Medium Matter Pod (100) Sensor Array Sensor Array Improved Terrain Scanner Terrain Scan Processor Scrap Shield Authchip [R/Combat] Shotgun Peak State ------------ > --- POWER ------------ Light Ion Engine > --- PROPULSION ------- Aluminum Leg Subdweller Monowheel > --- UTILITY ---------- Large Storage Unit Terrain Scan Processor > --- WEAPON ----------- Shotgun Battle Cannon > --- INVENTORY -------- Aluminum Leg Compact Wheel Improved Heat Sink Large Storage Unit High-capacity Battery Medium Matter Pod Sensor Array Sensor Array Improved Terrain Scanner Terrain Scan Processor Scrap Shield Small Laser Shotgun Mining Laser [Rating: 13] Favorites ----------- Power Ion Engine Engine Ion Engine Propulsion Compact Wheel Leg Aluminum Leg Wheel Compact Wheel Utility Small Storage Unit Device Improved Terrain Scanner Storage Small Storage Unit Processor Terrain Scan Processor Protection Hardened Light Armor Plating Weapon Small Laser Energy Gun Small Laser Ballistic Gun Shotgun Ballistic Cannon Battle Cannon Launcher Grenade Launcher Build | -11 -10 -10 -9 ------- Run | Yrd Mat Sub Rec Slots Evolved . | . . . . Power . | . . . . Propulsion . | . . . . Utility . | . . . . Weapon . | . . . . Parts Attached 37 | 10 7 13 7 Power 6 | 2 2 2 . Engine 6 | 2 2 2 . Core . | . . . . Reactor . | . . . . Propulsion 8 | 3 . 5 . Treads . | . . . . Leg 4 | 1 . 3 . Wheel 4 | 2 . 2 . Hover . | . . . . Flight . | . . . . Utility 10 | 3 2 2 3 Device 2 | 2 . . . Storage 3 | 1 1 1 . Processor 1 | . 1 . . Hackware . | . . . . Protection 4 | . . 1 3 Artifact . | . . . . Weapon 13 | 2 3 4 4 Energy Gun 6 | 2 2 1 1 Energy Cannon . | . . . . Ballistic Gun 4 | . . 2 2 Ballistic Cannon 1 | . . 1 . Launcher 2 | . 1 . 1 Special Weapon . | . . . . Impact Weapon . | . . . . Slashing Weapon . | . . . . Piercing Weapon . | . . . . Special Melee Weapon . | . . . . Unidentified Prototypes . | . . . . Parts Lost 13 | . 1 7 5 Power 3 | . . 3 . Propulsion 4 | . . 2 2 Utility 1 | . . . 1 Weapon 5 | . 1 2 2 Highest Loss Streak 5 | . 1 3 5 To Critical Strikes . | . . . . Average Slot Usage (%) 80 | . 99 85 64 Engine 6 | . 14 7 . Leg 7 | . . 8 10 Wheel 17 | . 28 18 10 Device 1 | . 5 . . Storage 13 | . 12 12 14 Processor 5 | . 10 8 . Protection 1 | . . 1 2 Energy Gun 11 | . 16 8 10 Ballistic Gun 9 | . . 9 14 Ballistic Cannon 2 | . . 5 . Launcher 4 | . 10 3 1 Peak Build Rating 13 | 9 12 13 11 Average Rating 9 | 8 10 10 7 On Entrance 7 | . 9 11 8 Naked Turns . | . . . . Heaviest Build 31 | 14 31 31 31 Greatest Support 36 | 26 26 36 16 Greatest Overweight (x) 8 | 1 1 2 8 Average Overweight (x) . | . . . 1 Largest Inventory Capacity 15 | 8 15 15 15 Average Capacity 10 | 7 12 13 15 Most Carried 15 | 7 15 15 15 Average Carried 7 | 5 10 13 13 Final Capacity 15 | 8 15 15 15 Final Carried 15 | 7 15 15 10 Class Distribution -------------------- 100% | Mutant Dominant Class ---------------- Mutant | -10/Materials Mutant | -10/Subcaves Mutant | -9/Recycling Resources | -11 -10 -10 -9 ----------- Run | Yrd Mat Sub Rec Matter Collected 1021 | 300 78 278 365 Remotely . | . . . . Salvage Created 1333 | 333 201 251 548 Parts 109 | 36 35 17 21 Haulers Intercepted 1 | . . . 1 Recyclers Shooed 3 | . . . 3 Parts Field Recycled . | . . . . Retrieved Matter . | . . . . Parts Self-Destructed 14 | . . 14 . Prevented . | . . . . Kills | -11 -10 -10 -9 ------- Run | Yrd Mat Sub Rec Combat Hostiles Destroyed 24 | . 9 9 6 Guns 11 | . 3 5 3 Cannons 2 | . . 2 . AOE 11 | . 6 2 3 Classes Destroyed 16 | 3 4 3 6 Worker 4 | 4 . . . Builder 5 | . 3 . 2 Tunneler 11 | 9 . . 2 Hauler 1 | . . . 1 Recycler 1 | 1 . . . Turret 2 | . . 2 . Watcher 2 | . 2 . . Swarmer 11 | . 6 5 . Grunt 4 | . 3 . 1 Brawler 1 | . . . 1 Protector 1 | . . . 1 Sentry 1 | . . 1 . Demolisher 1 | . . . 1 Hunter 1 | . . . 1 Programmer 1 | . . . 1 Subdweller 3 | . . 3 . Best Kill Streak 6 | 6 4 3 6 Combat Bots Only 3 | . 3 3 2 Max Kills in Single Turn 3 | 1 3 1 3 Gunslinging . | . . . . Exploded 2 | . 2 1 1 Melee . | . . . . Uniques/NPCs Destroyed . | . . . . Combat | -11 -10 -10 -9 -------- Run | Yrd Mat Sub Rec Hostile Shots Fired 240 | . 36 168 36 Missed 96 | . 14 72 10 Damage Taken 1502 | . 280 815 407 Core 250 | . 66 129 55 Absorbed by Shields . | . . . . Core Remaining (%) 100 | 100 . . . Volleys Fired 90 | 18 17 35 20 Largest 2 | 2 2 2 2 Hottest 90 | 80 90 79 68 Shots Fired 165 | 36 34 66 29 Gun 123 | 36 25 38 24 Cannon 20 | . . 20 . Launcher 22 | . 9 8 5 Special . | . . . . Kinetic 59 | . . 38 21 Thermal 34 | 18 . 16 . Explosive 17 | . 9 8 . Electromagnetic 55 | 18 25 4 8 Robot Hit Streak 11 | 11 10 9 7 Robot Miss Streak 7 | 2 7 6 3 Penetration Max . | . . . . Secondary Targets . | . . . . Shots Hit Robots 102 | 24 20 40 18 Core Hits 75 | 15 18 19 23 Critical Kills . | . . . . Critical Parts Destroyed . | . . . . Critical Strikes . | . . . . Melee Attacks . | . . . . Impact . | . . . . Slashing . | . . . . Piercing . | . . . . Sneak Attacks . | . . . . Combat Hostiles . | . . . . Follow-up Attacks . | . . . . Damage Inflicted 2645 | 319 731 697 898 Guns 1150 | 268 219 327 336 Cannons 173 | . . 173 . Explosions 1321 | 51 511 197 562 Melee . | . . . . Ramming 1 | . 1 . . Kinetic 637 | . . 341 296 Thermal 551 | 139 153 122 137 Explosive 555 | . 358 197 . Electromagnetic 901 | 180 219 37 465 Impact . | . . . . Slashing . | . . . . Piercing . | . . . . Highest Corruption . | . . . . Average Corruption . | . . . . Corruption Purged . | . . . . Corruption Blocked . | . . . . Overload Shots . | . . . . Overflow Damage 111 | . 50 36 25 Projectiles . | . . . . Explosions 111 | . 50 36 25 Melee . | . . . . Knockbacks 2 | . . 2 . Impact . | . . . . Kinetic 2 | . . 2 . Secondary . | . . . . Self-Inflicted Damage 95 | . 79 . 16 Shots 4 | . 3 . 1 Rammed 2 | . 1 . 1 Targets Rammed 2 | . 1 . 1 Kicked . | . . . . Crushed . | . . . . Highest Temperature 90 | 72 90 16 18 Average Temperature 25 | 24 29 7 10 Received Heat Transfer 474 | . 18 447 9 Siege Activations . | . . . . Robots Corrupted . | . . . . Combat Hostiles . | . . . . Parts Fried 1 | . 1 . . Impact Corruptions . | . . . . Robots Melted . | . . . . Combat Hostiles . | . . . . Parts Melted 1 | . 1 . . Heat Transferred 1025 | 300 200 275 250 Parts Sabotaged . | . . . . Parts Stolen . | . . . . Parts Stripped . | . . . . Power Chain Reactions 7 | 2 3 . 2 Alert | -11 -10 -10 -9 ------- Run | Yrd Mat Sub Rec Peak Influence 221 | 70 221 . 120 Initial 67 | . . . 67 Average 24 | 5 115 . 46 Maximum Alert Level 1 | . 1 . . Low Security (%) 99 | 100 91 . 100 Level 1 . | . 8 . . Level 2 . | . . . . Level 3 . | . . . . Level 4 . | . . . . Level 5 . | . . . . High Security . | . . . . Max Security . | . . . . Squads Dispatched 2 | . 2 . . Investigation 2 | . 2 . . Extermination . | . . . . Reinforcement . | . . . . Assault . | . . . . Garrison . | . . . . Intercept . | . . . . Searches Triggered . | . . . . Construction Impeded . | . . . . Haulers Reinforced . | . . . . Active Scanning Responses . | . . . . Cargo Convoy Interrupts . | . . . . Stealth | -11 -10 -10 -9 --------- Run | Yrd Mat Sub Rec Distress Signals 1 | . 1 . . Communications Jammed . | . . . . Distress Signals . | . . . . Times Spotted 38 | . 13 21 4 Peak Tracking Total 6 | . 4 6 3 Tactical Retreats 4 | . . 4 . Traps | -11 -10 -10 -9 ------- Run | Yrd Mat Sub Rec Traps Triggered 2 | . 2 . . Indirectly . | . . . . Trap Hack Attempts . | . . . . Triggered . | . . . . Disarmed . | . . . . Reprogrammed . | . . . . Reused . | . . . . Traps Extracted . | . . . . Installed . | . . . . Triggered . | . . . . Machines | -11 -10 -10 -9 ---------- Run | Yrd Mat Sub Rec Machines Disabled 1 | . 1 . . Max in Single Turn 1 | . 1 . . Machines Repaired . | . . . . Machines Dismantled . | . . . . Machines Sabotaged . | . . . . Overloaded Fab Kills . | . . . . Hacking | -11 -10 -10 -9 --------- Run | Yrd Mat Sub Rec Machines Accessed 4 | . 1 . 3 Terminals 2 | . 1 . 1 Fabricators . | . . . . Repair Stations . | . . . . Recycling Units . | . . . . Scanalyzers . | . . . . Garrison Access . | . . . . Total Hacks 31 | . 5 . 26 Successful 30 | . 4 . 26 Failed 1 | . 1 . . Catastrophic . | . . . . Database Lockouts . | . . . . Manual . | . . . . Terminals 6 | . 5 . 1 Fabricators . | . . . . Repair Stations . | . . . . Recycling Units . | . . . . Scanalyzers . | . . . . Garrison Access . | . . . . Terminal Hacks 30 | . 4 . 26 Record 28 | . 4 . 24 Zone Layout 1 | . . . 1 Release Object 1 | . . . 1 Fabricator Hacks . | . . . . Repair Station Hacks . | . . . . Recycling Unit Hacks . | . . . . Scanalyzer . | . . . . Garrison Access Hacks . | . . . . Unauthorized Hacks . | . . . . Terminals . | . . . . Fabricators . | . . . . Repair Stations . | . . . . Recycling Units . | . . . . Scanalyzers . | . . . . Garrison Access . | . . . . Data Cores Recovered . | . . . . Used . | . . . . Hacking Detections 1 | . 1 . . Full Trace Events . | . . . . Feedback Events . | . . . . Feedback Blocked . | . . . . Robot Schematics Acquired . | . . . . Robots Built . | . . . . Authchips . | . . . . Time . | . . . . Total Robot Build Rating . | . . . . Part Schematics Acquired . | . . . . Parts Built . | . . . . Authchips . | . . . . Time . | . . . . Total Part Build Rating . | . . . . Parts Repaired . | . . . . Time . | . . . . Parts Recycled . | . . . . Recycled Matter . | . . . . Retrieved Matter . | . . . . Retrieved Components . | . . . . Parts Scanalyzed . | . . . . Part Schematics Acquired . | . . . . Parts Damaged . | . . . . Bothacking | -11 -10 -10 -9 ------------ Run | Yrd Mat Sub Rec Used RIF Installer . | . . . . Robots Hacked . | . . . . Non-combat . | . . . . Combat . | . . . . Robot Hacks Applied . | . . . . Relay Couplers Released . | . . . . Fabnet Peak Effective % . | . . . . Robots Rewired . | . . . . Allies Hacked . | . . . . Hacks Repelled . | . . . . Allies | -11 -10 -10 -9 -------- Run | Yrd Mat Sub Rec Total Allies . | . . . . Largest Group . | . . . . Highest-Rated Group . | . . . . Highest-Rated Ally . | . . . . Total Orders . | . . . . Ally Attacks . | . . . . Total Damage . | . . . . Kills . | . . . . Allies Corrupted . | . . . . Allies Melted . | . . . . Intel | -11 -10 -10 -9 ------- Run | Yrd Mat Sub Rec Robot Analysis Total . | . . . . Derelict Logs Recovered 1 | . . 1 . Drone Launches . | . . . . Drone Recoveries . | . . . . Exploration | -11 -10 -10 -9 ------------- Run | Yrd Mat Sub Rec Turns Passed 4936 | 3043 430 715 748 Spaces Moved 1498 | 176 344 489 489 Core 39 | 4 . . 35 Treads . | . . . . Legs 10 | 7 . 3 . Wheels 1449 | 165 344 486 454 Hover . | . . . . Flight . | . . . . Fastest Speed 50 | 50 90 90 115 Average Speed 115 | 92 99 112 137 Slowest Speed 450 | 190 105 260 450 Overloaded Moves . | . . . . Propulsion Burnouts . | . . . . Robots Hopped . | . . . . Cave-ins Triggered . | . . . . Exploration Rate (%) 35 | 5 42 30 66 Regions Visited 3 Branch Regions 2 Pre-discovered Areas . | . . . . Known Exits Taken . | . . . . Unknown Exits Taken 3 | 1 1 1 . Scrap Searched . | . . . . Spaces Dug 15 | . . 15 . Terrain Destroyed 107 | 7 62 38 . Melee . | . . . . Projectile 1 | . . 1 . AOE 106 | 7 62 37 . Terrain Rammed . | . . . . Walls Destroyed . | . . . . Machines Disabled . | . . . . Actions | -11 -10 -10 -9 --------- Run | Yrd Mat Sub Rec Total 4532 | 3014 399 583 536 Wait 2848 | 2805 7 33 3 Move 1495 | 175 343 488 489 Hop . | . . . . Pick Up 36 | 6 16 11 3 Fast Attach 13 | 7 1 3 2 Attach 7 | . 1 5 1 Detach 1 | . . 1 . Swap 17 | 3 5 5 4 Drop 19 | . 8 2 9 Fire 90 | 18 17 35 20 Melee . | . . . . Ram 2 | . 1 . 1 Kick . | . . . . Crush . | . . . . Escape Stasis . | . . . . Rewire 4 | . . . 4 Trap . | . . . . Miscellaneous . | . . . . Route ------- -11/Scrapyard -10/Materials (discovered 2 exits: [*Min] / [*Sub]) -10/Subcaves -9/Recycling (discovered 1 exit: [*Scr]) History --------- Turn | Location | Event 28 | -11/Scrapyard | Discovered new exit (range 16) 3044 | -11/Scrapyard | Entered Materials 3045 | -10/Materials | Build established: Mutant 3342 | -10/Materials | Discovered new exit (range 11) 3452 | -10/Materials | Discovered new exit (range 12) 3474 | -10/Materials | Entered Subcaves 3487 | -10/Subcaves | Learned Materials security intel 3708 | -10/Subcaves | Lost 3 parts (1p1n1w) 3841 | -10/Subcaves | Core integrity fell below 50% 3847 | -10/Subcaves | Discovered new exit (range 16) 3926 | -10/Subcaves | Lost 3 parts (1p1n1w) 4189 | -10/Subcaves | Entered Recycling 4302 | -9/Recycling | Scanned before Scraplab entrance 4323 | -9/Recycling | Entered Scraplab 4337 | -9/Recycling | Discovered new exit (range 2) 4743 | -9/Recycling | Core integrity fell below 20% 4785 | -9/Recycling | Lost 5 parts (2n1u2w) 4937 | -9/Recycling | Destroyed by Y-45 Defender with Heavy Assault Rifle Last Messages --------------- 04923_ Acquired 1 matter. 04925_ Y-45 Defender springs to life. 04925_ U-05 Engineer lays Concrete. 04925_ Destroyed Heat Sink. 04925_ B-36 Bruiser destroyed. 04925_ U-05 Engineer destroyed. 04925_ Door malfunctions. 04927_ U-05 Engineer lays Concrete. 04927_ R-06 Scavenger collects Ion Engine. 04928_ U-05 Engineer lays Concrete. 04930_ R-06 Scavenger collects Corrupted Welding Torch. 04930_ U-05 Engineer lays Concrete. 04934_ R-06 Scavenger collects Corrupted Structural Scanner. 04935_ G-34 Mercenary destroyed. 04935_ Chain reaction triggered in Corrupted Rnf. Ion Engine. 04935_ A-02 Transporter destroyed. 04936_ U-05 Engineer lays Concrete. Map ----- +----------------------------------------------------+ | ?????????????????????????????????????????????# | | ????????????????????????????????????????????## | | ????????????????????????????????????????????# | | ????????????????????????????????????????????## | | ?????????????????????????????????????????????# | | ?????????????????????????????????????????????# | | ?????????????????????????????????###########?# | | ?????????????????????????????????# #?# | | ?????????????????????????????????# #?# | | ?????????????????????????????????# ! ! #?# | | ?????????????????????????????????# #?# | | ?????????????????????????????????# ! ! #?###+# | | ?????????????????????????????????# ! #???# # | | ????????????# ???????????????????# !!! !#???# # | | ????????????# ???###????????###?#! #???# # | | ????????????# ### ##########T##########+###### # | | ????????????# | | ????????????+ & | | ????????????# = | | ????????????# #####Y####################### | | ????????????# ???#% %r g % #????# !!#??# [ # | | ????????????# ????# |#???##!! ####[ [# | | ????????????#?????# !%[%#???# | | ??????????????????# [% da%!#???# | | ??????????????????# % u= #???# | | ??????????????????# % @ #???######+######### | | ??????????????????# #??????# #?# | | ??????????????????#hrl| i #??????# #?# | | ??????????????????###########??????# #?# | | ???????????????????????????????????# #?# | | ??????????????????##########???????# ### | | ??????????????????# #???????# ## | | ??????????????????# """ #???????# ### | | ??????????????????# """ #???????# #?# | | ??????????????????# """ #???????###########?# | | ??????????????????# """ #???????????????????# | | ??????????????????# ##################### | | ??????????????????# """ # | | ??????????????????# """ + | | ??????????????????# """ # """ | | ??????????????????# """ ##### """ ########+ | | ??????????????????# #???# """" #?# | | ??????????????????# #?### """" #?# | | ??????????????????# #?#"" """" #?# | | ??????????????????# #?#"Y "" #?# | | ??????????????????# #?#"" #?# | | ??????????????????##"T"#####?### ### | | ???????????????????#####???????# + | | ???????????????????????????????# ######### | | ???????????????????????????????# #???????? | +----------------------------------------------------+ Best States ------------- Heat Dissipation 25 Energy Generation 15 Energy Capacity 250 Matter Stores 300 Matter Capacity 300 Sight Range 16 Terrain Scan Range 16 Terrain Scan Density 85 Armor Coverage 800 Evasion (%) 45 Authchip Count 1 Item Schematics ----------------- None Robot Schematics ------------------ None Fabricated ------------ Nothing Alien Tech Used ----------------- None Achievements -------------- None Challenges ------------ None Game ------ Seed DefenseStructuralDetector Manual? 0 Play Time 00:34:38 Cumulative 22.9 hours Start 2024.09.08 @ 00:16:40 End 2024.09.08 @ 00:59:31 Sessions 1 Manual Loads 0 Difficulty Rogue Special Mode None Game No. 28 Rogue 28 Adventurer 0 Explorer 0 Win Type - Total 0 Types 0/0/0/0/0/0/0/0/0 Lore% 14 Gallery% 29 Achievement% 17 Wizard Run 0 Options --------- Layout 2 ASCII 0 Keyboard 1 Movement Numpad Keybinds 0 Fullscreen 2 Font 24/Crisp Map View 50x44 Zoom Use 5% Tactical HUD 1 Map Filters NONE Filters LOW_CONTRAST(5,20,15) Steam 1 RUN: 31e1f645-3b59-4123-83f9-b376c05c6abb